Cogmind - Beta 16 @@@ ROGUE MODE // 2025.12.27 @ 17:52:50 Player: Rune Result: Destroyed by H-55 Commando with Gauss Rifle Performance ------------- Evolutions (3) 1500 Regions Visited (4) 800 Robots Destroyed (60) 300 Value Destroyed (1801) 1801 Prototype IDs (2) 40 Alien Tech Used (0) 0 Bonus (0) 0 TOTAL SCORE: 4441 Bonus ------- None Cogmind --------- Core Integrity 0/700 Matter 300/300 Energy 96/100 System Corruption 4% Temperature Cool (27) Movement Core (200) Ox3 Location -7/Factory Parts ------- > --- POWER (1) -------- (None) > --- PROPULSION (2) --- (None) > --- UTILITY (5) ------ Medium Storage Unit > --- WEAPON (5) ------- (None) > --- INVENTORY (10) --- Improved Ion Engine Micro Nuclear Core Cooling System Matter Filter Kinecellerator Microactuators Improved Light Armor Plating Peak State ------------ > --- POWER ------------ Deuterium Engine > --- PROPULSION ------- Improved Titanium Leg Improved Titanium Leg > --- UTILITY ---------- Heat Sink Medium Storage Unit Advanced Weight Redist. System Trap Scanner System Shield > --- WEAPON ----------- Arc Projector Heavy Laser Heavy Laser High-powered Shotgun Flak Gun > --- INVENTORY -------- Improved Ion Engine Cooling System Matter Filter Kinecellerator Microactuators Improved Light Armor Plating Assault Cannon Flak Cannon [Rating: 43] Favorites ----------- Power Ion Engine Engine Ion Engine Power Core Light Nuclear Core Propulsion Aluminum Leg Treads Light Treads Leg Aluminum Leg Utility Medium Storage Unit Device Heat Sink Storage Medium Storage Unit Hackware System Shield Protection Light Armor Plating Weapon Beam Rifle Energy Gun Beam Rifle Energy Cannon Beam Cannon Ballistic Gun Assault Rifle Ballistic Cannon Improved Light Cannon Build | -11 -10 -9 -8 -7 ------- Run | Yrd Mat Mat Mat Fac Slots Evolved 6 | . . 2 2 2 Power . | . . . . . Propulsion . | . . . . . Utility 3 | . . 1 1 1 Weapon 3 | . . 1 1 1 Parts Attached 55 | 6 6 7 27 9 Power 7 | 1 1 1 3 1 Engine 6 | 1 1 1 2 1 Core 1 | . . . 1 . Reactor . | . . . . . Propulsion 12 | 2 2 1 5 2 Treads 2 | . . . 2 . Leg 10 | 2 2 1 3 2 Wheel . | . . . . . Hover . | . . . . . Flight . | . . . . . Utility 11 | 1 2 1 6 1 Device 6 | . . 1 4 1 Storage 3 | 1 2 . . . Processor . | . . . . . Hackware 1 | . . . 1 . Protection 1 | . . . 1 . Artifact . | . . . . . Weapon 25 | 2 1 4 13 5 Energy Gun 11 | . . 2 6 3 Energy Cannon 1 | . 1 . . . Ballistic Gun 7 | 2 . . 3 2 Ballistic Cannon 6 | . . 2 4 . Launcher . | . . . . . Special Weapon . | . . . . . Impact Weapon . | . . . . . Slashing Weapon . | . . . . . Piercing Weapon . | . . . . . Special Melee Weapon . | . . . . . Unidentified Prototypes 2 | . . . 2 . Parts Lost 26 | . 1 6 6 13 Power 2 | . . . 1 1 Propulsion 6 | . 1 2 1 2 Utility 8 | . . 2 2 4 Weapon 10 | . . 2 2 6 Highest Loss Streak 12 | . 1 3 3 12 To Critical Strikes . | . . . . . Average Backups 4 | 1 3 2 4 6 Power . | . . . . . Propulsion . | . . . . . Utility 1 | . . . . 3 Weapon 2 | . 1 1 3 2 Tool/Special . | . . . . . Unused Backups 11 | 1 . . 2 8 Power 1 | . . . . 1 Propulsion 1 | 1 . . . . Utility 7 | . . . . 7 Weapon 2 | . . . 2 . Tool/Special . | . . . . . Average Slot Usage (%) 90 | . 98 76 93 95 Engine 9 | . 14 11 7 6 Leg 16 | . 27 14 14 14 Device 12 | . . 2 17 22 Storage 12 | . 27 15 9 7 Hackware 3 | . . . 4 6 Energy Gun 13 | . . 13 15 21 Energy Cannon 2 | . 11 3 . . Ballistic Gun 7 | . 16 7 5 3 Ballistic Cannon 10 | . . 9 14 11 Peak Build Rating 43 | 6 7 11 25 43 Average Rating 18 | 4 6 8 20 33 On Entrance 9 | . 6 7 9 24 Avg Prop Armor Cover (%) . | . . . . . Naked Turns . | . . . . . Heaviest Build 41 | 14 21 27 38 41 Greatest Support 49 | 20 20 20 40 49 Greatest Overweight (x) 7 | 1 2 7 2 1 Average Overweight (x) . | . . 1 . . Largest Inventory Capacity 10 | 8 10 10 10 10 Average Capacity 9 | 7 9 10 10 10 Most Carried 10 | 5 5 5 10 10 Average Carried 4 | 1 3 2 4 6 Final Capacity 10 | 8 10 10 10 10 Final Carried 7 | 2 3 4 6 7 Class Distribution -------------------- 32% | Scavenger-Skirmisher 27% | Skirmisher 18% | Mutant 16% | Gunner 3% | Scientist-Skirmisher Dominant Class ---------------- Mutant | -10/Materials Gunner | -9/Materials Scavenger-Skirmisher | -8/Materials Skirmisher | -7/Factory Resources | -11 -10 -9 -8 -7 ----------- Run | Yrd Mat Mat Mat Fac Matter Collected 1583 | 214 128 245 660 336 Remotely . | . . . . . Salvage Created 1958 | . 180 524 809 445 Parts 130 | . 17 26 61 26 Haulers Intercepted 1 | . . 1 . . Recyclers Shooed 2 | . . 1 . 1 Parts Field Recycled . | . . . . . Retrieved Matter . | . . . . . Parts Self-Destructed . | . . . . . Prevented . | . . . . . Parts Restored . | . . . . . Kills | -11 -10 -9 -8 -7 ------- Run | Yrd Mat Mat Mat Fac Combat Hostiles Destroyed 44 | . 4 11 20 9 Guns 23 | . 2 6 9 6 Cannons 21 | . 2 5 11 3 Classes Destroyed 11 | . 2 5 3 1 Worker 3 | . . 1 2 . Builder 5 | . 1 1 2 1 Hauler 1 | . . 1 . . Recycler 2 | . . . 1 1 Watcher 5 | . . 3 1 1 Swarmer 11 | . . 3 4 4 Grunt 13 | . 4 3 4 2 Brawler 1 | . . . 1 . Sentry 16 | . . 5 10 1 Hunter 1 | . . . 1 . Programmer 2 | . . . . 2 Best Kill Streak 6 | . 3 4 6 4 Combat Bots Only 5 | . 2 4 5 4 Max Kills in Single Turn 2 | . 1 2 2 1 Gunslinging . | . . . . . Exploded . | . . . . . Melee . | . . . . . Uniques/NPCs Destroyed . | . . . . . Combat | -11 -10 -9 -8 -7 -------- Run | Yrd Mat Mat Mat Fac Hostile Shots Fired 443 | . 44 74 123 202 Missed 124 | . 10 22 29 63 Hits 319 | . 34 52 94 139 Melee 1 | . . . 1 . Projectile 318 | . 34 52 93 139 Critical Strikes 9 | . . 3 3 3 Damage Taken 4582 | . 419 669 1280 2214 Core 1065 | . 69 95 188 713 Absorbed by Shields . | . . . . . Regen/Repaired (Parts) 4 | . . . . 4 Core Remaining (%) 78 | 100 72 76 65 . Volleys Fired 108 | . 14 35 40 19 Largest 5 | . 2 3 4 5 Hottest 246 | . 80 149 200 246 Shots Fired 368 | . 28 98 153 89 Gun 215 | . 14 55 81 65 Cannon 153 | . 14 43 72 24 Launcher . | . . . . . Special . | . . . . . Kinetic 188 | . 14 47 91 36 Thermal 174 | . 14 51 62 47 Explosive . | . . . . . Electromagnetic 6 | . . . . 6 Robot Hit Streak 11 | . 6 11 8 7 Robot Miss Streak 11 | . 3 4 6 11 Penetration Max . | . . . . . Secondary Targets . | . . . . . Shots Hit Robots 203 | . 19 52 84 48 Core Hits 121 | . 9 22 59 31 Critical Kills . | . . . . . Critical Parts Destroyed . | . . . . . Critical Strikes 7 | . . 3 4 . Burn 5 | . . 3 2 . Blast 2 | . . . 2 . Melee Attacks . | . . . . . Impact . | . . . . . Slashing . | . . . . . Piercing . | . . . . . Sneak Attacks . | . . . . . Combat Hostiles . | . . . . . Follow-up Attacks . | . . . . . Damage Inflicted 3736 | . 308 925 1569 934 Guns 1855 | . 146 396 733 580 Cannons 1772 | . 157 520 800 295 Explosions . | . . . . . Melee . | . . . . . Ramming 109 | . 5 9 36 59 Kinetic 1895 | . 146 410 966 373 Thermal 1696 | . 157 506 567 466 Explosive . | . . . . . Electromagnetic 36 | . . . . 36 Impact . | . . . . . Slashing . | . . . . . Piercing . | . . . . . Highest Corruption 4 | . . . 2 4 Average Corruption 2 | . . . 2 2 Corruption Purged . | . . . . . Corruption Blocked . | . . . . . Effects 18 | . . . 13 5 Message Errors 6 | . . . 5 1 Matter Fused 4 | . . . 3 1 Heat Flow Errors 1 | . . . . 1 Energy Discharges 1 | . . . 1 . Parts Fused 1 | . . . . 1 Data Loss (minor) 2 | . . . 1 1 Misfires 2 | . . . 2 . Weapon Failures 1 | . . . 1 . Overload Shots . | . . . . . Overflow Damage 19 | . . 2 6 11 Projectiles 19 | . . 2 6 11 Explosions . | . . . . . Melee . | . . . . . Knockbacks 14 | . . 1 6 7 Impact 1 | . . . . 1 Kinetic 12 | . . 1 6 5 Secondary 1 | . . . . 1 Self-Inflicted Damage . | . . . . . Shots . | . . . . . Rammed 3 | . . . 3 . Targets Rammed 21 | . 1 5 9 6 Kicked 17 | . 1 5 5 6 Crushed 1 | . . . 1 . Highest Temperature 439 | . 319 289 439 322 Average Temperature 111 | . 151 88 122 108 Received Heat Transfer 1176 | . 219 249 360 348 Effects 7 | . . 2 3 2 Shutdowns 1 | . . . 1 . Interference 6 | . . 2 2 2 Siege Activations . | . . . . . Martial Activations . | . . . . . Shielding Activations . | . . . . . Robots Disrupted 1 | . . . . 1 Combat Hostiles . | . . . . . Robots Corrupted . | . . . . . Combat Hostiles . | . . . . . Parts Fried . | . . . . . Impact Corruptions . | . . . . . Robots Melted . | . . . . . Combat Hostiles . | . . . . . Parts Melted 7 | . . 5 1 1 Heat Transferred 4009 | . 333 1480 1234 962 Parts Sabotaged . | . . . . . Parts Stolen . | . . . . . Parts Stripped . | . . . . . Power Chain Reactions . | . . . . . Alert | -11 -10 -9 -8 -7 ------- Run | Yrd Mat Mat Mat Fac Maximum Alert Level 1 | . . . 1 . Low Security (%) 88 | 100 100 100 65 100 Level 1 11 | . . . 34 . Level 2 . | . . . . . Level 3 . | . . . . . Level 4 . | . . . . . Level 5 . | . . . . . High Security . | . . . . . Max Security . | . . . . . Peak Influence 271 | . 74 137 271 122 Initial 88 | . . 3 . 88 Average 61 | . 15 36 124 35 Influence Increases 1323 | . 105 356 604 258 Destroy 0b10 Robot/C 880 | . 80 220 400 180 Destroy 0b10 Robot/NC 80 | . 5 30 30 15 Destroy Leader 272 | . 20 68 142 42 Successful Hack 27 | . . 2 22 3 Disable Machine 15 | . . 15 . . Destroy Structure 19 | . . 6 10 3 Lose Combat Pursuer 30 | . . 15 . 15 Influence Decreases 1323 | . 95 366 408 454 Entered New Map 115 | . . 7 . 108 Time Decay 971 | . 85 299 360 227 Lost Part 237 | . 10 60 48 119 Squads Dispatched 7 | . 1 . 4 2 Investigation . | . . . . . Extermination 1 | . . . . 1 Reinforcement 3 | . 1 . 1 1 Assault . | . . . . . Garrison 3 | . . . 3 . Intercept . | . . . . . Searches Triggered . | . . . . . Construction Impeded 1 | . . . . 1 Haulers Reinforced . | . . . . . Active Scanning Responses . | . . . . . Cargo Convoy Interrupts 1 | . . . . 1 Stealth | -11 -10 -9 -8 -7 --------- Run | Yrd Mat Mat Mat Fac Distress Signals 5 | . 1 3 1 . Communications Jammed . | . . . . . Distress Signals . | . . . . . Times Spotted 83 | . 10 19 25 29 Peak Tracking Total 15 | . 6 4 7 15 Tactical Retreats 2 | . . 1 . 1 Traps | -11 -10 -9 -8 -7 ------- Run | Yrd Mat Mat Mat Fac Traps Triggered 2 | . 1 . 1 . Indirectly . | . . . . . Trap Hack Attempts . | . . . . . Triggered . | . . . . . Disarmed . | . . . . . Reprogrammed . | . . . . . Reused . | . . . . . Traps Extracted . | . . . . . Installed . | . . . . . Triggered . | . . . . . Machines | -11 -10 -9 -8 -7 ---------- Run | Yrd Mat Mat Mat Fac Machines Disabled 1 | . . 1 . . Max in Single Turn 1 | . . 1 . . Machines Repaired . | . . . . . Machines Dismantled . | . . . . . Machines Sabotaged . | . . . . . Overloaded Fab Kills . | . . . . . Hacking | -11 -10 -9 -8 -7 --------- Run | Yrd Mat Mat Mat Fac Machines Accessed 12 | . 1 5 4 2 Terminals 4 | . . 1 3 . Fabricators . | . . . . . Repair Stations 2 | . . 1 . 1 Recycling Units 3 | . 1 2 . . Scanalyzers 2 | . . 1 . 1 Garrison Access 1 | . . . 1 . Total Hacks 25 | . 1 9 7 8 Successful 22 | . 1 7 7 7 Failed 3 | . . 2 . 1 Catastrophic . | . . . . . Database Lockouts . | . . . . . Manual . | . . . . . Terminals 9 | . . 3 6 . Fabricators . | . . . . . Repair Stations 4 | . . 1 . 3 Recycling Units 5 | . 1 4 . . Scanalyzers 6 | . . 1 . 5 Garrison Access 1 | . . . 1 . Terminal Hacks 9 | . . 3 6 . Record 8 | . . 3 5 . Zone Layout 1 | . . . 1 . Fabricator Hacks . | . . . . . Repair Station Hacks 3 | . . 1 . 2 Scan Component 2 | . . 1 . 1 Repair 1 | . . . . 1 Recycling Unit Hacks 4 | . 1 3 . . Recycle Component 1 | . . 1 . . Process 1 | . . 1 . . Report Inventory 2 | . 1 1 . . Scanalyzer 5 | . . . . 5 Retrieve Study 5 | . . . . 5 Garrison Access Hacks 1 | . . . 1 . Unlock Access 1 | . . . 1 . Unauthorized Hacks . | . . . . . Terminals . | . . . . . Fabricators . | . . . . . Repair Stations . | . . . . . Recycling Units . | . . . . . Scanalyzers . | . . . . . Garrison Access . | . . . . . Data Cores Recovered . | . . . . . Used . | . . . . . Hacking Detections 5 | . 1 1 2 1 Full Trace Events . | . . . . . Feedback Events . | . . . . . Feedback Blocked . | . . . . . Robot Schematics Acquired . | . . . . . Robots Built . | . . . . . Authchips . | . . . . . Time . | . . . . . Total Robot Build Rating . | . . . . . Part Schematics Acquired . | . . . . . Parts Built . | . . . . . Authchips . | . . . . . Time . | . . . . . Total Part Build Rating . | . . . . . Part Studies Acquired 5 | . . . . 5 Parts Repaired 1 | . . . . 1 Time 32 | . . . . 32 Parts Recycled 1 | . . 1 . . Recycled Matter 6 | . . 6 . . Retrieved Matter . | . . . . . Retrieved Components . | . . . . . Parts Scanalyzed . | . . . . . Part Schematics Acquired . | . . . . . Parts Damaged . | . . . . . Bothacking | -11 -10 -9 -8 -7 ------------ Run | Yrd Mat Mat Mat Fac Used RIF Installer . | . . . . . Robots Hacked . | . . . . . Non-combat . | . . . . . Combat . | . . . . . Robot Hacks Applied . | . . . . . Relay Couplers Released . | . . . . . Fabnet Peak Effective % . | . . . . . Robots Rewired . | . . . . . Allies Hacked . | . . . . . Hacks Repelled . | . . . . . Allies | -11 -10 -9 -8 -7 -------- Run | Yrd Mat Mat Mat Fac Total Allies . | . . . . . Largest Group . | . . . . . Highest-Rated Group . | . . . . . Highest-Rated Ally . | . . . . . Total Orders . | . . . . . Ally Attacks . | . . . . . Total Damage . | . . . . . Kills . | . . . . . Allies Corrupted . | . . . . . Allies Melted . | . . . . . Intel | -11 -10 -9 -8 -7 ------- Run | Yrd Mat Mat Mat Fac Active Infowar (turns) 1797 | . . 144 1286 367 Terrain 144 | . . 144 . . Structural 558 | . . . 558 . Traps 1299 | . . . 932 367 Robot Analysis Total . | . . . . . Derelict Logs Recovered . | . . . . . Drone Launches . | . . . . . Drone Recoveries . | . . . . . Exploration | -11 -10 -9 -8 -7 ------------- Run | Yrd Mat Mat Mat Fac Turns Passed 3860 | 113 600 873 1287 987 Spaces Moved 1812 | 89 304 319 547 553 Core 56 | 18 . 38 . . Treads 89 | . . . 89 . Legs 1667 | 71 304 281 458 553 Wheels . | . . . . . Hover . | . . . . . Flight . | . . . . . Fastest Speed 50 | 50 120 190 120 130 Average Speed 176 | 110 178 215 192 146 Slowest Speed 400 | 190 260 400 260 190 Overloaded Moves . | . . . . . Propulsion Burnouts . | . . . . . Robots Hopped . | . . . . . Potential Cave-ins . | . . . . . Cave-ins Triggered . | . . . . . Exploration Rate (%) 25 | 4 36 29 48 12 Regions Visited 4 Branch Regions . Pre-discovered Areas . | . . . . . Known Exits Taken . | . . . . . Unknown Exits Taken 4 | 1 1 1 1 . Scrap Searched . | . . . . . Spaces Dug . | . . . . . Terrain Destroyed 12 | . . 1 10 1 Melee . | . . . . . Projectile 12 | . . 1 10 1 AOE . | . . . . . Terrain Rammed . | . . . . . Walls Destroyed . | . . . . . Machines Disabled . | . . . . . Actions | -11 -10 -9 -8 -7 --------- Run | Yrd Mat Mat Mat Fac Total 2248 | 104 337 427 691 689 Wait 113 | . . 45 6 62 Move 1808 | 88 303 318 546 553 Hop . | . . . . . Pick Up 66 | 9 5 9 28 15 Fast Attach . | . . . . . Attach 65 | 6 7 9 29 14 Detach 37 | . 5 4 18 10 Swap . | . . . . . Drop 30 | 1 2 2 15 10 Fire 108 | . 14 35 40 19 Melee . | . . . . . Ram . | . . . . . Kick 17 | . 1 5 5 6 Crush 4 | . . . 4 . Escape Stasis . | . . . . . Rewire . | . . . . . Trap . | . . . . . Miscellaneous . | . . . . . Route ------- -11/Scrapyard -10/Materials -9/Materials -8/Materials (discovered 2 exits: *Fac / Gar) -7/Factory History --------- Turn | Location | Event 14 | -11/Scrapyard | Discovered new exit (range 16) 114 | -11/Scrapyard | Entered Materials 315 | -10/Materials | Build established: Mutant 704 | -10/Materials | Discovered new exit (range 4) 714 | -10/Materials | Entered another Materials area 714 | -9/Materials | Evolved 2 slots: Utility x1, Weapon x1 1197 | -9/Materials | Lost 3 parts (2n1w) 1325 | -9/Materials | Build established: Gunner 1545 | -9/Materials | Discovered new exit (range 16) 1587 | -9/Materials | Entered another Materials area 1587 | -8/Materials | Evolved 2 slots: Utility x1, Weapon x1 2043 | -8/Materials | Lost 3 parts (1p1n1w) 2590 | -8/Materials | Build established: Scavenger-Skirmisher 2654 | -8/Materials | Identified exit to Garrison 2686 | -8/Materials | Discovered new exit (range 16) 2874 | -8/Materials | Entered Factory 2874 | -7/Factory | Evolved 2 slots: Utility x1, Weapon x1 3148 | -7/Factory | Repaired Terrain Scan Processor 3484 | -7/Factory | Build established: Skirmisher 3834 | -7/Factory | Cargo convoy interrupted 3858 | -7/Factory | Core integrity fell below 50% 3861 | -7/Factory | Core integrity fell below 20% 3861 | -7/Factory | Destroyed by H-55 Commando with Gauss Rifle Last Messages --------------- Penetrated by Slug. Slug penetrates Reinforced Barrier. Hpw. Shotgun+ destroyed. K-01 Serf collects debris. R-06 Scavenger collects Med. Matter Pod. Penetrated by Slug. H-55 Commando suffers critical hit (Burn). Adv. Weight Redist. System destroyed. Penetrated by Slug. K-01 Serf collects debris. Penetrated by Slug. Hvy. Laser+ destroyed. Penetrated by Slug. Hvy. Laser+ destroyed. Penetrated by Slug. K-01 Serf collects debris. Trap Scanner destroyed. Penetrated by Slug. K-01 Serf collects debris. Penetrated by Slug. Map ----- +----------------------------------------------------+ | ???? #???????????? | | ???? % #???????????? | | ?????+#############+##### ########???????????? | | ??????????????# ! # #??????????????????? | | ??????????????# # #??????????????????? | | ??????????????# """ """ # ##############?????? | | ??????????????# """ """ / # #?????? | | ??????????????# """ """ # # #?????? | | ??????????????# "" "" # # #?????? | | ??????????????# "" "" # # #?????? | | ??????????????# # = # #?????? | | ??????????????# """ = # %#% #?????? | | ??????????????# """ # %+% #?????? | | ??????????????# """ # %# #?????? | | ??????????????# "" # # #?????? | | ??????????????# "" "" # g g # #?????? | | ??????????????# """ # g # #?????? | | ??????????????# S" # # #?????? | | ??????????????# ! # ##############?????? | | ??????????????########### k #??????????????????? | | ????????????????????????# #??????????????????? | | ????????????????????????# #??????????????????? | | ????????????????????????# #??????????????????? | | ?????????????????????#??# #??????????????????? | | ?????????????????#####T # wh###+#??????????????? | | ?????????? ^ @ h ????????? | | ?????????? h m ???????? | | ????????????"" ^ rxpx%k rr ????????? | | ????????????"" h k ^????????? | | ????????????"" u kuhu % ?????????? | | ???????????? #########u ######### ?????????? | | ????????????!!??????????# #??????????????????? | | ????????????????????????# #??????????????????? | | ????????????????????????# +??????????????????? | | ????????????????????????# k # ?????????????????? | | ????????????????????????# # ?????????????????? | | ????????????????????????# #?"????????????????? | | ????????????????????????? #??????????????????? | | ????????????????????????? #??????????????????? | | ????????????????????????? ???????????????????? | | ????????????????????????? ?????????????????????? | | ?????????????????????????????????????????????????? | | ?????????????????????????????????????????????????? | | ?????????????????????????????????????????????????? | | ?????????????????????????????????????????????????? | | ?????????????????????????????????????????????????? | | ?????????????????????????????????????????????????? | | ?????????????????????????????????????????????????? | | ?????????????????????????????????????????????????? | | ?????????????????????????????????????????????????? | +----------------------------------------------------+ Best States ------------- Heat Dissipation 44 Energy Generation 14 Energy Capacity 350 Matter Stores 300 Matter Capacity 300 Sight Range 16 Terrain Scan Range 14 Terrain Scan Density 10 Additional Mass Support 9 Armor Coverage 150 Evasion (%) 55 Recoil Reduction 2 Defensive Hacking 10 Item Schematics ----------------- None Robot Schematics ------------------ None Fabricated ------------ Nothing Repaired ---------- Terrain Scan Processor | 81% | -7/Factory Studied --------- Arc Projector | -7/Factory | Hacked Flak Gun | -7/Factory | Hacked Imp. Ion Engine | -7/Factory | Hacked Hvy. Laser | -7/Factory | Hacked Hpw. Shotgun | -7/Factory | Hacked Alien Tech Used ----------------- None Achievements -------------- Bumper Bots Ghost 'Em Item+ Jackpot Novice Programmer Challenges ------------ None Game ------ Seed SupercompositeChainFilter Manual? 0 Play Time 00:53:36 Cumulative 12.7 hours Start 2025.11.13 @ 20:14:56 End 2025.12.27 @ 17:52:50 Sessions 3 Manual Loads 0 Difficulty Rogue Special Mode None Game No. 42 Rogue 42 Adventurer 0 Explorer 0 Win Type - Total 0 Types 0/0/0/0/0/0/0/0/0/0 Lore% 5 Gallery% 12 Achievement% 9 Wizard Run 0 Options --------- Layout 1 ASCII 0 Keyboard 1 Movement Numpad Keybinds 0 Fullscreen 1 Font 32/SmallcapsGlow Map View 50x35 Zoom Use 0% Tactical HUD 0 Map Filters NONE Filters NONE Steam 1 RUN: 0103762e-b9a3-45af-bba3-1a851cd4241b